bitfinex-derivatives/quotes_BTCF0:USTF0_20241128
["timestamp","ask_amount","ask_price","bid_price","bid_amount"]
[1732764977091,0.3648,95017.0,95015.0,0.01394238]
[1732764977291,0.3648,95017.0,95015.0,0.052572]
[1732764977595,0.002,95017.0,95016.0,0.01394653]
[1732764978002,0.003,95017.0,95016.0,0.02380763]
[1732764978201,0.003,95017.0,95016.0,0.09876241]
[1732764978504,0.005,95017.0,95016.0,0.09876241]
[1732764978706,0.002,95017.0,95016.0,0.04619041]
[1732764978909,0.002,95017.0,95016.0,0.01494653]
[1732764979102,0.002,95017.0,95016.0,0.001]
[1732764980905,0.052572,95018.0,95016.0,0.001]
[1732764981108,0.052572,95018.0,95016.0,0.005]
[1732764981297,0.003,95017.0,95016.0,0.004]
[1732764981494,0.003,95017.0,95000.0,0.11605154]
[1732764981495,0.003,95017.0,95015.0,0.052572]
[1732764981714,0.3608,95016.0,94998.0,0.26401282]
[1732764981901,0.052573,95015.0,94998.0,0.26401282]
[1732764982205,0.052573,95015.0,95012.0,0.052574]
[1732764982911,0.052573,95015.0,95014.0,0.01375075]
[1732764983097,0.055573,95015.0,95014.0,0.01375075]
[1732764983298,0.055573,95015.0,94998.0,0.06977282]
[1732764983601,0.01696322,95015.0,94991.0,0.23937893]
[1732764983797,0.3608,95003.0,95002.0,0.05648]
[1732764985210,0.058573,95015.0,95014.0,0.052573]
[1732764985211,0.004,95015.0,95014.0,0.052573]
[1732764985410,0.3608,95016.0,95014.0,0.052573]
[1732764985906,0.3608,95016.0,95007.0,0.052577]
[1732764986108,0.052579,95005.0,95002.0,0.05848]
[1732764986410,0.3608,95008.0,95003.0,0.0139036]
[1732764986606,0.3608,95008.0,95002.0,0.0059]
[1732764986801,0.3608,95008.0,95004.0,0.01381047]
[1732764987001,0.3608,95008.0,95002.0,0.0059]
[1732764987002,0.3608,95008.0,95007.0,0.052577]
[1732764987312,0.3608,95008.0,95007.0,0.06638747]
[1732764988902,0.3628,95008.0,95007.0,0.06638747]
[1732764989513,0.3628,95008.0,95007.0,0.06640992]
[1732764991409,0.3628,95008.0,95007.0,0.052577]
[1732764992511,0.3628,95008.0,95007.0,0.06634628]
[1732764992709,0.3628,95008.0,95007.0,0.01376928]
[1732764992906,0.6628,95008.0,94978.0,0.00157925]
[1732764993215,0.052593,94980.0,94978.0,0.00157925]
[1732764993912,0.052593,94980.0,94978.0,0.05417225]
[1732764994217,0.052593,94980.0,94978.0,0.052593]
[1732764994518,0.052594,94977.0,94962.0,0.0634]
[1732764994723,0.3608,94968.0,94961.0,0.00056]
[1732764994909,0.3608,94968.0,94958.0,0.11605154]
[1732764995111,0.3608,94968.0,94947.0,0.05261]
[1732764995112,0.3608,94960.0,94952.0,0.19428]
[1732764995314,0.3608,94960.0,94953.0,0.00986754]
[1732764995517,0.3608,94960.0,94952.0,0.19428]
[1732764996014,0.3608,94960.0,94958.0,0.052604]
[1732764996222,0.55508,94977.0,94959.0,0.3608]
[1732764996519,0.55508,94977.0,94967.0,0.052599]
[1732764996520,0.3608,94969.0,94967.0,0.052599]
[1732764996709,0.3608,94969.0,94962.0,0.052602]
[1732764996912,0.3608,94969.0,94961.0,0.009]
[1732764997114,0.3608,94968.0,94961.0,0.009]
[1732764997309,0.001,94960.0,94953.0,0.19428]
[1732764997515,0.001,94960.0,94959.0,0.061604]
[1732764997914,0.001,94960.0,94959.0,0.052604]
[1732764998107,0.3608,94968.0,94953.0,0.19428]
[1732764998314,0.3608,94968.0,94967.0,0.052599]
[1732765000719,0.3608,94968.0,94967.0,0.058599]
[1732765000920,0.3608,94968.0,94967.0,0.060599]
[1732765002519,0.5558,94982.0,94978.0,0.052593]
[1732765002520,0.36148,94982.0,94978.0,0.052593]
[1732765002720,0.36148,94982.0,94967.0,0.060599]
[1732765002721,0.3608,94982.0,94977.0,0.052594]
[1732765003024,0.3608,94982.0,94973.0,0.052596]
[1732765003224,0.3608,94982.0,94972.0,0.11605154]
[1732765003427,0.3608,94982.0,94977.0,0.052594]
[1732765003723,0.3608,94982.0,94969.0,0.19432]
[1732765003724,0.3608,94982.0,94971.0,0.052597]
[1732765003921,0.3608,94982.0,94977.0,0.001]
[1732765004323,0.3618,94982.0,94977.0,0.001]
[1732765005117,0.3618,94982.0,94980.0,0.052592]
[1732765007627,0.3618,94982.0,94967.0,0.052599]
[1732765007819,0.3608,94970.0,94968.0,0.02330862]
[1732765008022,0.3608,94970.0,94967.0,0.052599]
[1732765008023,0.3608,94970.0,94969.0,0.0134423]
[1732765008722,0.3608,94970.0,94959.0,0.052604]
[1732765008932,0.3608,94970.0,94953.0,0.033]
[1732765008933,0.0314,94969.0,94961.0,0.052602]
[1732765009126,0.3608,94962.0,94961.0,0.052602]
[1732765010722,0.3608,94962.0,94961.0,0.061602]
[1732765010922,0.3608,94969.0,94961.0,0.009]
[1732765011426,0.3608,94969.0,94968.0,0.052599]
[1732765011624,0.0921931,94978.0,94961.0,0.013]
[1732765011929,0.3608,94971.0,94970.0,0.052597]
[1732765013036,0.3608,94980.0,94979.0,0.052593]
[1732765013342,0.3608,94980.0,94979.0,0.06245821]
[1732765013522,0.3608,94980.0,94979.0,0.246433]
[1732765013832,0.36148,94993.0,94979.0,0.55464]
[1732765014038,0.3608,94993.0,94980.0,0.0634]
[1732765014225,0.3608,94993.0,94980.0,0.17945154]
[1732765014420,0.3608,94993.0,94991.0,0.052586]
[1732765014629,0.3608,94999.0,94987.0,0.3608]
[1732765014835,0.3608,94999.0,94997.0,0.052582]
[1732765015133,0.55532,95013.0,95001.0,0.05258]
[1732765015134,0.0921931,95012.0,95001.0,0.05258]
[1732765015323,0.0921931,95012.0,94993.0,0.19384]
[1732765015324,0.3608,95005.0,95003.0,0.052579]
[1732765015833,0.12259627,95016.0,94993.0,0.19384]
[1732765015834,0.3608,95022.0,95004.0,0.3608]
[1732765016022,0.3608,95020.0,95014.0,0.052573]
[1732765016223,0.3608,95020.0,95012.0,0.19384]
[1732765016439,0.3608,95020.0,95013.0,0.00986123]
[1732765016732,0.3608,95020.0,95012.0,0.19384]
[1732765017424,0.3638,95020.0,95012.0,0.19384]
[1732765017722,0.3668,95020.0,95012.0,0.19384]
[1732765017927,0.3668,95020.0,95017.0,0.052571]
[1732765018530,0.3638,95020.0,95012.0,0.19384]
[1732765018729,0.41937,95020.0,95012.0,0.246414]
[1732765018930,0.41937,95020.0,95013.0,0.052574]
[1732765019125,0.3668,95020.0,95015.0,0.052573]
[1732765019325,0.3668,95020.0,95016.0,0.052572]
[1732765019530,0.3668,95020.0,95012.0,0.19384]
[1732765020222,0.052571,95019.0,95012.0,0.19384]
[1732765020427,0.052572,95017.0,95012.0,0.246414]
[1732765020730,0.3688,95020.0,95015.0,0.052573]
[1732765021034,0.3688,95020.0,94988.0,0.20918832]
[1732765021233,0.052578,95005.0,95001.0,0.052581]
[1732765021425,0.052578,95005.0,94996.0,0.00986254]
[1732765021426,0.052582,94998.0,94996.0,0.00986254]
[1732765021630,0.3608,95002.0,94989.0,0.052587]
[1732765021631,0.052585,94993.0,94989.0,0.052587]
[1732765021935,0.052586,94992.0,94989.0,0.052587]
[1732765022235,0.3608,94997.0,94980.0,0.20244]
[1732765022435,0.3608,94983.0,94981.0,0.052592]
[1732765022940,0.3608,94997.0,94996.0,0.052583]
[1732765023237,0.12259627,95009.0,94980.0,0.20244]
[1732765023238,0.3608,95006.0,95004.0,0.052578]
[1732765025027,0.3638,95006.0,95004.0,0.052578]
[1732765025731,0.3658,95006.0,95004.0,0.052578]
[1732765026135,0.3638,95006.0,95004.0,0.052578]
[1732765026345,0.3668,95006.0,95004.0,0.052578]
[1732765026937,0.003,95006.0,95004.0,0.052578]
[1732765027132,0.003,95006.0,95005.0,0.00986297]
[1732765027729,0.3608,95014.0,95013.0,0.052574]
[1732765027935,0.3608,95026.0,95009.0,0.3608]
[1732765028235,0.3608,95026.0,95022.0,0.052569]
[1732765028430,0.3608,95026.0,95016.0,0.11605154]
[1732765028431,0.3608,95026.0,95021.0,0.052569]
[1732765028739,0.3608,95026.0,95022.0,0.052569]
[1732765028940,0.3608,95026.0,95016.0,0.11605154]
[1732765029134,0.3608,95017.0,95016.0,0.11605154]
[1732765029327,0.002,95006.0,95000.0,0.11605154]
[1732765029528,0.3628,95006.0,95000.0,0.31849154]
[1732765029734,0.3628,95006.0,94997.0,0.44268]
[1732765029938,0.3608,94998.0,94997.0,0.00056]
[1732765030332,0.052584,94994.0,94989.0,0.20244]
[1732765030533,0.3608,94998.0,94990.0,0.052586]
[1732765030736,0.052585,94994.0,94984.0,0.0141298]
[1732765031035,0.052585,94994.0,94983.0,0.0210417]
[1732765031436,0.3608,94998.0,94980.0,0.11605154]
[1732765032231,0.3608,94998.0,94997.0,0.005]
[1732765032634,0.3608,94998.0,94991.0,0.052586]
[1732765033339,0.3638,94998.0,94988.0,0.11605154]
[1732765033540,0.3638,94998.0,94995.0,0.052583]
[1732765034435,0.3638,94998.0,94988.0,0.11605154]
[1732765034635,0.3608,94989.0,94980.0,0.001]
[1732765034836,0.413392,94981.0,94980.0,0.001]
[1732765035233,0.052593,94979.0,94978.0,0.00157916]
[1732765035645,0.0311,94980.0,94960.0,0.11605154]
[1732765035841,0.3608,94966.0,94963.0,0.052601]
[1732765036037,0.01064178,94965.0,94953.0,0.20244]
[1732765036238,0.01064178,94965.0,94954.0,0.00986736]
[1732765036446,0.01064178,94965.0,94962.0,0.052602]
[1732765036851,0.01064178,94965.0,94960.0,0.009]
[1732765037041,0.3608,94966.0,94963.0,0.04195922]
[1732765037239,0.3608,94966.0,94960.0,0.009]
[1732765038047,0.3608,94966.0,94962.0,0.006]
[1732765038048,0.001,94965.0,94962.0,0.006]
[1732765038454,0.368522,94964.0,94962.0,0.006]
[1732765038748,0.368522,94964.0,94954.0,0.009]
[1732765038749,0.31592,94964.0,94954.0,0.009]
[1732765038943,0.0636,94965.0,94940.0,0.17411163]
[1732765038944,0.3608,94955.0,94949.0,0.052609]
[1732765039144,0.0306,94954.0,94949.0,0.052609]
[1732765039454,0.083207,94954.0,94949.0,0.052609]
[1732765041147,0.084207,94954.0,94949.0,0.060609]
[1732765041761,0.084207,94954.0,94949.0,0.008]
[1732765041956,0.052609,94951.0,94949.0,0.017]
[1732765043464,0.053609,94951.0,94949.0,0.017]
[1732765043854,0.053609,94951.0,94949.0,0.008]
[1732765044055,0.053609,94951.0,94949.0,0.017]
[1732765046662,0.053609,94951.0,94934.0,0.00157998]
[1732765046663,0.31596,94950.0,94934.0,0.00157998]
[1732765046863,0.413417,94935.0,94934.0,0.00157998]
[1732765047873,0.3608,94935.0,94934.0,0.009]
[1732765048666,0.3608,94935.0,94934.0,0.018]
[1732765048667,0.414417,94935.0,94934.0,0.018]
[1732765049968,0.414417,94935.0,94934.0,0.009]
[1732765050167,0.415417,94935.0,94934.0,0.018]
[1732765052569,0.3628,94935.0,94934.0,0.018]
[1732765052765,0.002,94935.0,94934.0,0.018]
[1732765052961,0.3608,94955.0,94949.0,0.052609]
[1732765053166,0.3608,94960.0,94945.0,0.17411163]
[1732765053361,0.3608,94964.0,94960.0,0.052603]
[1732765054263,0.3608,94967.0,94960.0,0.052603]
[1732765054860,0.3608,94967.0,94953.0,0.052607]
[1732765055062,0.3608,94958.0,94953.0,0.052607]
[1732765055258,0.3608,94958.0,94946.0,0.000424]
[1732765055777,0.3608,94958.0,94950.0,0.052608]
[1732765056365,0.3608,94958.0,94947.0,0.02105716]
[1732765056866,0.3608,94958.0,94957.0,0.052605]
[1732765057175,0.01609786,94961.0,94960.0,0.052603]
[1732765057369,0.00909786,94961.0,94960.0,0.052603]
[1732765057871,9.786e-05,94961.0,94960.0,0.052603]
[1732765058372,9.786e-05,94961.0,94960.0,0.054603]
[1732765058576,9.786e-05,94961.0,94960.0,0.002]
[1732765058776,9.786e-05,94961.0,94953.0,0.052607]
[1732765058972,9.786e-05,94961.0,94960.0,0.002]
[1732765060074,9.786e-05,94961.0,94960.0,0.001]
[1732765060371,0.00109786,94961.0,94960.0,0.001]
[1732765061577,0.00109786,94961.0,94959.0,0.052604]
[1732765061774,0.00109786,94961.0,94960.0,0.001]
[1732765062267,0.3608,94967.0,94966.0,0.0526]
[1732765062470,0.00068,94988.0,94966.0,0.0526]
[1732765062471,0.3608,94976.0,94966.0,0.36852]
[1732765062765,0.3608,94976.0,94975.0,0.052595]
[1732765063375,0.3608,94976.0,94975.0,0.00012392]
[1732765063970,0.3608,94976.0,94975.0,0.00312392]
[1732765065179,0.3608,94976.0,94975.0,0.00612392]
[1732765065480,0.3608,94976.0,94975.0,0.02045187]
[1732765065674,0.3608,94976.0,94975.0,0.01745187]
[1732765065979,0.3608,94976.0,94975.0,0.01845187]
[1732765066578,0.3608,94986.0,94985.0,0.052589]
[1732765067070,0.3608,94986.0,94977.0,0.052594]
[1732765067270,0.3608,94978.0,94977.0,0.052594]
[1732765067976,0.3608,94978.0,94975.0,0.01945187]
[1732765067977,0.052594,94977.0,94975.0,0.00312392]
[1732765068369,0.052594,94977.0,94975.0,0.00112392]
[1732765068569,0.3608,94978.0,94977.0,0.002]
[1732765069172,0.3608,94978.0,94975.0,0.00412392]
[1732765069372,0.09234823,94976.0,94975.0,0.00412392]
[1732765069875,0.31588,94976.0,94975.0,0.00412392]
[1732765070075,0.31588,94976.0,94951.0,0.052608]
[1732765070076,0.052603,94961.0,94951.0,0.052608]
[1732765070274,0.3608,94952.0,94951.0,0.052608]
[1732765071371,0.3628,94952.0,94947.0,0.06684778]
[1732765071680,0.3628,94952.0,94950.0,0.052608]
[1732765071877,0.3608,94952.0,94950.0,0.052608]
[1732765072069,0.3608,94952.0,94951.0,0.002]
[1732765072474,0.3608,94952.0,94950.0,0.052608]
[1732765073475,0.3628,94952.0,94950.0,0.052608]
[1732765074682,0.002,94952.0,94950.0,0.052608]
[1732765074872,0.3608,94975.0,94973.0,0.052596]
[1732765075972,0.3668,94975.0,94973.0,0.001]
[1732765076869,0.420395,94975.0,94973.0,0.001]
[1732765077479,0.3618,94975.0,94966.0,0.0526]
[1732765077670,0.3608,94967.0,94959.0,0.052604]
[1732765077876,0.3608,94966.0,94959.0,0.052604]
[1732765078084,0.3938,94966.0,94950.0,0.21708]
[1732765078287,0.3608,94955.0,94951.0,0.052608]
[1732765078881,0.3608,94955.0,94944.0,0.0326]
[1732765078882,0.3608,94955.0,94953.0,0.052607]
[1732765079883,0.3608,94955.0,94945.0,0.052611]
[1732765080071,0.3608,94955.0,94945.0,0.18814598]
[1732765080277,0.3608,94955.0,94953.0,0.002]
[1732765080973,0.3608,94955.0,94947.0,0.05261]
[1732765081178,0.3608,94955.0,94948.0,0.052609]
[1732765081378,0.3608,94955.0,94945.0,0.18914598]
[1732765081578,0.3608,94955.0,94951.0,0.052608]
[1732765081774,0.3638,94955.0,94945.0,0.18814598]
[1732765081977,0.3638,94955.0,94944.0,0.01427617]
[1732765082178,0.3638,94955.0,94945.0,0.18814598]
[1732765082377,0.3638,94955.0,94953.0,0.052607]
[1732765082378,0.3618,94955.0,94953.0,0.052607]
[1732765083078,0.3648,94955.0,94953.0,0.052607]
[1732765083477,0.004,94955.0,94953.0,0.052607]
[1732765083678,0.004,94955.0,94954.0,0.0314]
[1732765083873,0.3608,94966.0,94959.0,0.052604]
[1732765084078,0.3608,94966.0,94958.0,0.18889535]
[1732765084286,0.3608,94966.0,94956.0,0.11605712]
[1732765084287,0.052601,94964.0,94956.0,0.16866212]
[1732765084476,0.3608,94966.0,94956.0,0.11605712]
[1732765084477,0.09234112,94965.0,94956.0,0.11605712]
[1732765084685,0.3608,94966.0,94962.0,0.052602]
[1732765084890,0.3608,94966.0,94956.0,0.30495247]
[1732765085276,0.45314112,94966.0,94956.0,0.11605712]
[1732765085583,0.45314112,94966.0,94958.0,0.055604]
[1732765086678,0.052602,94962.0,94958.0,0.003]
[1732765086976,0.052602,94962.0,94956.0,0.001]
[1732765087179,0.3608,94958.0,94956.0,0.001]
[1732765087586,0.3608,94958.0,94956.0,0.052605]
[1732765088180,0.3608,94958.0,94950.0,0.20333824]
[1732765088379,0.00839303,94957.0,94950.0,0.18889535]
[1732765088580,0.00839303,94956.0,94946.0,0.18889535]
[1732765088781,0.3608,94949.0,94941.0,0.18889535]
[1732765089088,0.09234112,94943.0,94929.0,0.18889535]
[1732765089285,0.3608,94930.0,94927.0,0.052621]
[1732765089595,0.3608,94930.0,94917.0,0.18889535]
[1732765089596,0.02259843,94929.0,94917.0,0.18889535]
[1732765089779,0.02259843,94929.0,94927.0,0.052621]
[1732765089979,0.02259843,94929.0,94920.0,0.11605712]
[1732765090488,0.02259843,94929.0,94927.0,0.007]
[1732765090884,0.00839303,94928.0,94927.0,0.007]
[1732765091181,0.052623,94925.0,94920.0,0.009]
[1732765091489,0.02359843,94929.0,94920.0,0.009]
[1732765091490,0.3608,94921.0,94920.0,0.009]
[1732765091692,0.38489781,94921.0,94919.0,0.052626]
[1732765091989,0.02409781,94920.0,94919.0,0.052626]
[1732765092875,0.02409781,94920.0,94911.0,0.05263]
[1732765093078,0.00926839,94919.0,94911.0,0.05263]
[1732765093291,0.00926839,94918.0,94911.0,0.05263]
[1732765093587,0.00926839,94917.0,94911.0,0.05263]
[1732765093789,0.00926839,94916.0,94911.0,0.05263]
[1732765093976,0.00926839,94915.0,94911.0,0.05263]
[1732765094181,0.00926839,94914.0,94911.0,0.06963]
[1732765094389,0.00926839,94913.0,94911.0,0.06963]
[1732765094695,0.001,94918.0,94911.0,0.06963]
[1732765094893,0.0093719,94917.0,94911.0,0.06963]
[1732765095080,0.0093719,94916.0,94911.0,0.06963]
[1732765095279,0.0093719,94915.0,94911.0,0.06963]
[1732765095483,0.0093719,94914.0,94911.0,0.06963]
[1732765095785,0.001,94918.0,94911.0,0.017]
[1732765095786,0.3608,94912.0,94911.0,0.017]
[1732765095986,0.38516695,94912.0,94911.0,0.06963]
[1732765096179,0.0093719,94912.0,94911.0,0.73751]
[1732765096385,0.001,94915.0,94914.0,0.052628]
[1732765096584,0.001,94915.0,94911.0,0.69388]
[1732765096585,0.001,94915.0,94911.0,0.37036]
[1732765096783,0.001,94914.0,94911.0,0.008]
[1732765096987,0.3618,94912.0,94911.0,0.017]
[1732765097494,0.3618,94912.0,94891.0,0.02105988]
[1732765097495,0.3608,94912.0,94897.0,0.052638]
[1732765097679,0.0324,94911.0,94897.0,0.052638]
[1732765097986,0.04191112,94911.0,94897.0,0.052638]
[1732765098192,0.00951112,94910.0,94897.0,0.052638]
[1732765098493,0.3608,94904.0,94897.0,0.052638]
[1732765098698,0.0252214,94903.0,94897.0,0.052638]
[1732765098993,0.3608,94904.0,94897.0,0.052638]
[1732765098994,0.00951112,94902.0,94897.0,0.052638]
[1732765099184,0.00951112,94901.0,94897.0,0.052638]
[1732765099382,0.00951112,94900.0,94897.0,0.052638]
[1732765099689,0.00951112,94899.0,94897.0,0.061638]
[1732765099883,0.001,94903.0,94897.0,0.070638]
[1732765100090,0.00928374,94902.0,94897.0,0.061638]
[1732765100288,0.001,94902.0,94897.0,0.018]
[1732765100583,0.00928061,94901.0,94897.0,0.018]
[1732765100787,0.001,94899.0,94897.0,0.018]
[1732765100981,0.00928061,94898.0,94897.0,0.018]
[1732765102290,0.00970099,94898.0,94897.0,0.018]
[1732765103182,0.00970099,94898.0,94897.0,0.009]
[1732765103379,0.01070099,94898.0,94897.0,0.018]
[1732765103591,0.01070099,94898.0,94897.0,0.009]
[1732765103792,0.01170099,94898.0,94897.0,0.018]
[1732765106882,0.01170099,94898.0,94897.0,0.016]
[1732765107688,0.0116352,94898.0,94897.0,0.016]
[1732765107996,0.01598908,94911.0,94910.0,0.052631]
[1732765108686,0.3608,94916.0,94914.0,0.052628]
[1732765109289,0.00963325,94915.0,94914.0,0.052628]
[1732765109593,0.01541942,94932.0,94931.0,0.052619]
[1732765109802,0.00011588,94943.0,94932.0,0.316]
[1732765110001,0.00011588,94943.0,94942.0,0.052613]
[1732765110190,0.3608,94959.0,94958.0,0.052604]
[1732765110996,0.3608,94968.0,94960.0,0.052603]
[1732765111194,0.3608,94968.0,94962.0,0.052602]
[1732765111401,0.3608,94968.0,94961.0,9.909e-05]
[1732765111694,0.3608,94968.0,94966.0,0.0526]
[1732765111996,0.3608,94968.0,94961.0,9.909e-05]
[1732765112585,0.31592,94967.0,94961.0,9.909e-05]
[1732765112787,0.31592,94967.0,94933.0,0.052618]
[1732765112788,0.052601,94965.0,94933.0,0.052618]
[1732765112990,0.3608,94940.0,94934.0,0.052617]
[1732765113192,0.3608,94948.0,94938.0,0.052615]
[1732765113402,0.3608,94948.0,94934.0,0.3608]
[1732765113583,0.3608,94960.0,94942.0,0.3608]
[1732765113791,0.3608,94960.0,94956.0,0.052605]
[1732765113993,0.3608,94960.0,94951.0,0.2198]
[1732765114896,0.3608,94960.0,94953.0,0.052607]
[1732765115090,0.3608,94960.0,94951.0,0.2198]
[1732765115292,0.3608,94952.0,94951.0,0.2198]
[1732765115794,0.3608,94952.0,94945.0,0.052611]
[1732765116096,0.3608,94952.0,94946.0,0.052611]
[1732765116884,0.052608,94951.0,94938.0,0.052615]
[1732765117088,0.3648,94952.0,94936.0,0.00056]
[1732765117298,0.3608,94942.0,94930.0,0.21976]
[1732765117893,0.052614,94941.0,94930.0,0.21976]
[1732765118191,0.052614,94941.0,94928.0,0.21976]
[1732765118896,0.3608,94942.0,94928.0,0.21976]
[1732765119289,0.3608,94942.0,94929.0,0.05262]
[1732765119484,0.3608,94942.0,94930.0,0.052619]
[1732765119997,0.053614,94941.0,94930.0,0.052619]
[1732765120495,0.052614,94941.0,94930.0,0.052619]
[1732765120700,0.3618,94942.0,94930.0,0.052619]
[1732765120701,0.001,94942.0,94940.0,0.052614]
[1732765120897,0.002,94942.0,94940.0,0.052614]
[1732765121199,0.002,94942.0,94941.0,0.21976]
[1732765122301,0.002,94942.0,94941.0,0.25056]
[1732765122493,0.001,94942.0,94941.0,0.25056]
[1732765122895,0.3608,94952.0,94951.0,0.052608]
[1732765123096,0.36969497,94952.0,94951.0,0.052608]
[1732765123294,0.36969497,94952.0,94944.0,0.052612]
[1732765123494,0.00889497,94951.0,94941.0,0.21976]
[1732765123799,0.00889497,94950.0,94941.0,0.21976]
[1732765124007,0.3608,94952.0,94948.0,0.05261]
[1732765124008,0.00889497,94949.0,94948.0,0.05261]
[1732765124193,0.3608,94952.0,94948.0,0.05261]
[1732765124392,0.3608,94952.0,94941.0,0.58112]
[1732765124697,0.05261,94948.0,94941.0,0.58056]
[1732765125006,0.0090794,94947.0,94941.0,0.58056]
[1732765125195,0.00901959,94946.0,94941.0,0.58056]
[1732765125392,0.00901882,94945.0,94942.0,0.052613]
[1732765125597,0.01443012,94951.0,94942.0,0.052613]
[1732765125807,0.3658,94952.0,94942.0,0.052613]
[1732765125808,0.002,94948.0,94942.0,0.052613]
[1732765126191,0.00879326,94947.0,94942.0,0.052613]
[1732765126495,0.00879326,94947.0,94938.0,0.22748]
[1732765126496,0.01079314,94946.0,94938.0,0.22748]
[1732765126697,0.00879314,94945.0,94938.0,0.22748]
[1732765126895,0.00879314,94944.0,94938.0,0.22748]
[1732765127091,0.052617,94935.0,94930.0,0.05262]
[1732765127291,0.3608,94931.0,94925.0,0.052622]
[1732765127501,0.00879314,94930.0,94925.0,0.052622]
[1732765127707,0.052625,94921.0,94912.0,0.00056]
[1732765127897,0.00879314,94920.0,94913.0,0.05267683]
[1732765128097,0.052626,94919.0,94913.0,0.05267683]
[1732765128300,0.00879314,94918.0,94913.0,0.05267683]
[1732765128591,0.00879314,94918.0,94916.0,0.052627]
[1732765128795,0.00879314,94917.0,94915.0,0.052628]
[1732765128999,0.00879314,94916.0,94914.0,0.052629]
[1732765129197,0.0148321,94920.0,94914.0,0.052629]
[1732765129198,0.00879314,94915.0,94914.0,0.052629]
[1732765129403,0.00879314,94915.0,94913.0,0.00504783]
[1732765129612,0.00879314,94914.0,94913.0,0.00504783]
[1732765129797,0.35497314,94914.0,94913.0,0.00504783]
[1732765129998,0.05372524,94914.0,94887.0,0.24853874]
[1732765130200,0.052637,94899.0,94895.0,0.052639]
[1732765130396,0.00879314,94898.0,94895.0,0.052639]
[1732765131496,0.00879314,94898.0,94887.0,0.02105874]
[1732765131703,0.00879314,94898.0,94896.0,0.052638]
[1732765132205,0.00979314,94898.0,94896.0,0.052638]
[1732765132393,0.00879314,94897.0,94896.0,0.052638]
[1732765133707,0.00879314,94897.0,94888.0,0.07885091]
[1732765133708,0.00928343,94897.0,94888.0,0.009]
[1732765133906,0.3608,94889.0,94888.0,0.009]
[1732765134109,0.37008343,94889.0,94888.0,0.009]
[1732765135115,0.37008343,94889.0,94876.0,0.24861874]
[1732765135298,0.00928343,94888.0,94876.0,0.24861874]
[1732765135499,0.00928343,94887.0,94876.0,0.24861874]
[1732765135700,0.00928343,94886.0,94876.0,0.24861874]
[1732765135909,0.00928343,94885.0,94876.0,0.24861874]
[1732765136109,0.3618,94889.0,94876.0,0.24861874]
[1732765136309,0.00899073,94888.0,94876.0,0.24861874]
[1732765136501,0.00899073,94887.0,94883.0,0.052645]
[1732765136703,0.00899073,94886.0,94883.0,0.052645]
[1732765136996,0.001,94885.0,94883.0,0.052645]
[1732765138296,0.001,94885.0,94883.0,0.009]
[1732765138297,0.002,94885.0,94883.0,0.009]
[1732765138495,0.55237659,94884.0,94883.0,0.009]
[1732765138694,0.55237659,94884.0,94852.0,0.3608]
[1732765138695,0.052655,94866.0,94852.0,0.3608]
[1732765138896,0.3608,94865.0,94852.0,0.3608]
[1732765139196,0.36984742,94865.0,94843.0,0.0140142]
[1732765139392,0.3608,94857.0,94842.0,0.052669]
[1732765139999,0.3608,94857.0,94843.0,0.052668]
[1732765140208,0.3608,94857.0,94845.0,0.052667]
[1732765140707,0.3608,94857.0,94840.0,0.4915786]
[1732765140708,0.3608,94857.0,94847.0,0.11622575]
[1732765140908,0.3618,94857.0,94847.0,0.11622575]
[1732765141112,0.3618,94857.0,94848.0,0.3608]
[1732765141309,0.3618,94857.0,94850.0,0.052664]
[1732765141796,0.3618,94857.0,94848.0,0.3608]
[1732765141997,0.3618,94857.0,94854.0,0.052662]
[1732765142406,0.3628,94857.0,94854.0,0.052662]
[1732765143603,0.3628,94857.0,94855.0,0.052661]
[1732765143804,0.001,94857.0,94855.0,0.052661]
[1732765143999,0.002,94857.0,94855.0,0.052661]
[1732765144407,0.002,94857.0,94856.0,0.3608]
[1732765144903,0.002,94857.0,94856.0,0.67708]
[1732765145102,0.3608,94875.0,94856.0,0.67708]
[1732765145298,0.3608,94875.0,94873.0,0.052651]
[1732765146508,0.05787752,94936.0,94894.0,0.05264]
[1732765146509,0.3608,94895.0,94894.0,0.05264]
[1732765146716,0.413432,94909.0,94885.0,0.17448041]
[1732765146717,0.3608,94909.0,94885.0,0.17448041]
[1732765146905,0.3608,94909.0,94901.0,0.052636]
[1732765147405,0.3608,94907.0,94901.0,0.052636]
[1732765147799,0.3608,94913.0,94907.0,0.052632]
[1732765148000,0.006,94909.0,94908.0,0.052632]
[1732765149418,9.42e-05,94924.0,94908.0,0.052632]
[1732765149600,9.42e-05,94924.0,94923.0,0.052624]
[1732765150605,9.42e-05,94924.0,94916.0,0.3608]
[1732765150805,0.3608942,94924.0,94916.0,0.3608]
[1732765151213,0.3608942,94924.0,94922.0,0.052624]
[1732765151407,9.42e-05,94924.0,94923.0,0.003]
[1732765151610,9.42e-05,94924.0,94923.0,0.31904]
[1732765151819,0.3608,94946.0,94944.0,0.052612]
[1732765152711,0.3608,94946.0,94945.0,9.476e-05]
[1732765153514,0.3658,94946.0,94945.0,9.476e-05]
[1732765153815,0.3688,94946.0,94945.0,9.476e-05]
[1732765154534,0.00068,94965.0,94964.0,0.052601]
[1732765154710,0.09273391,94976.0,94945.0,0.67685476]
[1732765154711,0.00012881,94976.0,94963.0,0.3608]
[1732765155017,0.00012881,94976.0,94970.0,0.052597]
[1732765155215,0.3608,94972.0,94963.0,0.3608]
[1732765155713,0.3608,94972.0,94960.0,0.24292]
[1732765155916,0.3608,94972.0,94963.0,0.001]
[1732765156414,0.00912881,94976.0,94955.0,0.24292]